bitfinex/quotes_ETHUSD_20250322
["timestamp","ask_amount","ask_price","bid_price","bid_amount"]
[1742601997321,5.07912,1968.9,1968.6,5.07972]
[1742601997531,10.15828,1968.9,1968.5,15.25338098]
[1742601997844,5.07912,1968.9,1968.5,10.17348098]
[1742601998039,5.07888,1969.0,1968.6,5.9103]
[1742601998331,10.15775,1969.0,1968.6,10.98989]
[1742601998630,5.07887,1969.0,1968.7,5.07944]
[1742601998796,5.078,1969.3,1968.9,5.90946]
[1742601999126,10.94626,1969.4,1969.0,5.07867]
[1742601999429,5.86842,1969.4,1969.0,10.15724]
[1742601999640,5.86842,1969.4,1969.1,5.07831]
[1742602000002,0.7907,1969.4,1969.0,31.93769]
[1742602000215,5.07807,1969.3,1969.0,31.93769]
[1742602000628,5.07807,1969.3,1969.0,32.32262117]
[1742602000830,5.86841,1969.4,1969.0,32.32262117]
[1742602000831,5.86841,1969.4,1969.0,32.32256117]
[1742602001132,5.07804,1969.3,1969.0,32.32256117]
[1742602001519,5.86841,1969.4,1969.0,32.32255117]
[1742602001744,5.07746,1969.5,1969.1,5.07831]
[1742602002061,5.07746,1969.5,1969.2,5.9087]
[1742602002917,1.094538,1969.5,1969.0,26.859]
[1742602003117,5.07846,1969.1,1969.0,26.859]
[1742602003619,0.7907,1969.5,1969.0,27.6896]
[1742602003820,8.07736,1969.6,1969.2,5.07817]
[1742602004244,5.07743,1969.5,1969.2,5.07812]
[1742602004442,3.0,1969.6,1969.1,0.55]
[1742602004637,5.07779,1969.4,1969.1,5.62839]
[1742602005729,3.86087506,1969.7,1969.4,5.0775]
[1742602005934,3.86087506,1969.7,1969.4,5.07753]
[1742602006128,8.93788506,1969.7,1969.4,5.07753]
[1742602006329,10.15349,1969.8,1969.4,10.15508]
[1742602006535,11.17621,1970.0,1969.6,5.07697]
[1742602006729,10.15314,1969.9,1969.5,5.90795]
[1742602006954,5.0767,1969.8,1969.5,5.90795]
[1742602007558,5.0767,1969.8,1969.5,0.8306]
[1742602007927,5.07703,1969.7,1969.5,0.8306]
[1742602009673,5.0767,1969.8,1969.5,0.8306]
[1742602010045,10.1535,1969.8,1969.5,0.8306]
[1742602010661,10.1535,1969.8,1969.6,26.847]
[1742602012561,5.07691,1969.7,1969.6,26.847]
[1742602012868,5.07691,1969.7,1969.6,27.88440302]
[1742602014664,5.07691,1969.7,1969.6,26.847]
[1742602019855,5.0764,1969.9,1969.6,26.847]
[1742602020056,10.15301,1969.9,1969.6,26.847]
[1742602020260,5.07677,1969.8,1969.6,26.847]
[1742602020474,10.15358,1969.8,1969.6,26.847]
[1742602020670,5.07677,1969.8,1969.6,26.847]
[1742602022060,5.07642,1969.9,1969.6,26.847]
[1742602022262,5.07596,1970.1,1969.7,5.07675]
[1742602022466,8.85365,1970.2,1969.8,5.87521]
[1742602022661,5.07598,1970.1,1969.8,5.87521]
[1742602023049,5.07598,1970.1,1969.8,0.7988]
[1742602023254,3.778,1970.4,1969.8,5.87532]
[1742602023461,5.07568,1970.2,1969.9,5.0763]
[1742602023659,10.151,1970.3,1969.9,5.0763]
[1742602023839,5.07547,1970.3,1969.9,5.0763]
[1742602024045,5.07563,1970.2,1969.9,5.0763]
[1742602024252,10.15106,1970.3,1969.9,6.09804538]
[1742602024546,5.07547,1970.3,1969.9,5.07625]
[1742602024747,5.07566,1970.2,1969.9,5.07625]
[1742602025261,10.15147,1970.2,1969.8,6.89093114]
[1742602025576,10.15147,1970.2,1969.9,5.07636]
[1742602025577,5.07566,1970.2,1969.9,5.07636]
[1742602025787,8.85313,1970.4,1970.0,5.07613]
[1742602025945,8.85313,1970.4,1969.8,1.81429114]
[1742602025946,0.7794,1970.6,1970.2,5.07543]
[1742602026147,5.85399,1970.6,1970.3,5.07524]
[1742602026454,5.85399,1970.6,1970.2,5.07552]
[1742602026455,5.07459,1970.6,1970.2,5.07552]
[1742602026671,5.07459,1970.6,1970.2,5.0755]
[1742602027074,5.07494,1970.5,1970.1,11.60661579]
[1742602027281,5.0752,1970.4,1970.1,11.60661579]
[1742602027580,5.07541,1970.3,1970.1,6.53077579]
[1742602027781,5.07541,1970.3,1970.1,5.72447579]
[1742602028158,5.07541,1970.3,1970.1,6.0993252]
[1742602028878,5.0752,1970.4,1970.1,6.0993252]
[1742602029264,5.85428,1970.5,1970.1,11.1750252]
[1742602029467,5.07514,1970.4,1970.1,11.1750252]
[1742602029686,5.07514,1970.4,1970.1,6.0993252]
[1742602029901,10.15044,1970.4,1970.1,6.0993252]
[1742602030387,5.07538,1970.3,1970.1,6.0993252]
[1742602030784,5.07514,1970.4,1970.1,6.0993252]
[1742602031488,5.07514,1970.4,1970.2,26.834]
[1742602035792,10.15043,1970.4,1970.2,26.834]
[1742602036369,5.07536,1970.3,1970.2,26.834]
[1742602036570,5.07514,1970.4,1970.2,26.834]
[1742602036792,10.92983,1970.4,1970.2,31.542]
[1742602038398,10.15043,1970.4,1970.2,31.542]
[1742602039884,5.07514,1970.4,1970.2,31.542]
[1742602040084,10.15042,1970.4,1970.2,31.542]
[1742602041605,5.07536,1970.3,1970.2,31.542]
[1742602043811,5.07514,1970.4,1970.2,31.542]
[1742602043989,10.15049,1970.4,1970.2,31.542]
[1742602044389,10.15048,1970.4,1970.2,31.542]
[1742602044798,5.07514,1970.4,1970.2,31.542]
[1742602045180,10.15042,1970.4,1970.2,31.542]
[1742602045502,5.07536,1970.3,1970.2,31.542]
[1742602045914,10.1504,1970.4,1970.2,31.542]
[1742602046406,5.07514,1970.4,1970.2,31.542]
[1742602046584,5.07514,1970.4,1970.2,32.3325]
[1742602048020,5.07487,1970.5,1970.2,37.40811]
[1742602048227,5.07521,1970.4,1970.2,32.3325]
[1742602048910,10.15047,1970.4,1970.2,32.3325]
[1742602049113,5.07504,1970.5,1970.2,32.3325]
[1742602049291,5.07512,1970.4,1970.2,32.3325]
[1742602049481,5.07512,1970.4,1970.2,31.542]
[1742602052618,5.07504,1970.5,1970.2,36.61747]
[1742602052782,5.07504,1970.5,1970.2,31.542]
[1742602052783,5.07505,1970.5,1970.2,31.542]
[1742602052989,5.07505,1970.5,1970.2,36.61755]
[1742602053320,5.07505,1970.5,1970.2,31.542]
[1742602053321,5.07502,1970.5,1970.2,31.542]
[1742602053521,10.15002,1970.5,1970.2,31.542]
[1742602053711,5.075,1970.5,1970.2,31.542]
[1742602054115,10.15007,1970.5,1970.2,31.542]
[1742602054485,5.075,1970.5,1970.2,31.542]
[1742602054691,5.07511,1970.4,1970.2,31.542]
[1742602055297,5.58245,1970.5,1970.2,31.542]
[1742602055501,10.65748,1970.5,1970.2,31.542]
[1742602056124,5.07512,1970.4,1970.2,31.542]
[1742602058422,5.58245,1970.5,1970.2,31.542]
[1742602058596,5.07511,1970.4,1970.2,31.542]
[1742602058946,0.7986,1971.1,1970.3,0.7553]
[1742602059149,5.87202,1971.1,1970.7,5.07415]
[1742602059300,5.87202,1971.1,1970.8,4.723]
[1742602059934,10.9455,1971.1,1970.8,4.723]
[1742602060151,5.87202,1971.1,1970.8,4.723]
[1742602060350,5.07392,1970.9,1970.5,5.82998]
[1742602060644,0.7986,1970.8,1970.7,4.723]
[1742602064914,5.07392,1970.9,1970.7,4.723]
[1742602069917,5.87227,1971.0,1970.7,4.723]
[1742602070123,5.07382,1970.9,1970.7,4.723]
[1742602074034,5.87227,1971.0,1970.7,4.723]
[1742602074838,5.0739,1970.9,1970.7,4.723]
[1742602075002,5.07366,1971.0,1970.7,4.723]
[1742602075540,5.07366,1971.0,1970.7,9.79733]
[1742602075717,10.14741,1971.0,1970.7,4.723]
[1742602075918,5.07366,1971.0,1970.7,4.723]
[1742602077510,5.07366,1971.0,1970.7,9.7973]
[1742602079952,5.07417,1970.8,1970.5,27.21369969]
[1742602080150,5.07417,1970.8,1970.5,31.92069969]
[1742602080448,5.07435,1970.7,1970.5,31.92069969]
[1742602081314,5.07435,1970.7,1970.5,32.92824996]
[1742602085713,5.07417,1970.8,1970.5,32.92824996]
[1742602085945,10.14848,1970.8,1970.5,32.92824996]
[1742602086256,5.07435,1970.7,1970.5,32.92824996]
[1742602086471,10.14839,1970.8,1970.5,32.92824996]
[1742602086743,10.14844,1970.8,1970.5,32.92824996]
[1742602086943,5.07417,1970.8,1970.5,38.00304996]
[1742602087148,10.14841,1970.8,1970.5,32.92824996]
[1742602087350,10.1484,1970.8,1970.5,32.92824996]
[1742602087519,10.14839,1970.8,1970.5,32.92824996]
[1742602087722,5.07417,1970.8,1970.5,38.00300996]
[1742602087924,10.14842,1970.8,1970.5,38.00300996]
[1742602088271,5.07417,1970.8,1970.5,38.00300996]
[1742602088547,10.14841,1970.8,1970.5,38.00300996]
[1742602088749,10.14841,1970.8,1970.5,32.92824996]
[1742602089955,5.07417,1970.8,1970.5,32.92824996]
[1742602090117,10.14842,1970.8,1970.5,32.92824996]
[1742602090321,5.07438,1970.7,1970.5,32.92824996]
[1742602090822,5.07417,1970.8,1970.5,32.92824996]
[1742602091151,10.14841,1970.8,1970.5,32.92824996]
[1742602092854,10.14843,1970.8,1970.5,32.92824996]
[1742602093432,5.07417,1970.8,1970.5,32.92824996]
[1742602094154,10.1484,1970.8,1970.5,32.92824996]
[1742602095054,5.07417,1970.8,1970.5,32.92824996]
[1742602095357,5.07435,1970.7,1970.5,32.92824996]
[1742602097059,10.14883,1970.7,1970.5,32.92824996]
[1742602097231,5.07435,1970.7,1970.5,32.92824996]
[1742602098257,10.14885,1970.7,1970.5,32.92824996]
[1742602098428,5.07435,1970.7,1970.5,32.92824996]
[1742602099254,10.14879,1970.7,1970.5,26.827]
[1742602099453,5.85429,1970.6,1970.5,26.827]
[1742602103374,11.95429,1970.6,1970.5,26.827]
[1742602103546,5.07562,1970.2,1970.1,4.699]
[1742602103946,5.07562,1970.2,1970.0,27.21105283]
[1742602104170,5.07562,1970.2,1970.0,31.91105283]
[1742602104673,5.07568,1970.2,1970.0,31.91105283]
[1742602105681,5.07537,1970.3,1970.0,31.528]
[1742602105881,5.07522,1970.4,1970.1,0.7754]
[1742602106052,10.15051,1970.4,1970.1,0.7754]
[1742602106399,10.15053,1970.4,1970.1,0.7754]
[1742602106600,5.07522,1970.4,1970.1,0.7754]
[1742602106880,10.15053,1970.4,1970.1,0.7754]
[1742602107188,10.15051,1970.4,1970.1,0.7754]
[1742602107473,5.07522,1970.4,1970.1,0.7754]
[1742602107687,5.07493,1970.5,1970.1,5.85112]
[1742602108263,10.14999,1970.5,1970.1,5.85112]
[1742602108680,10.14998,1970.5,1970.1,5.85112]
[1742602109052,5.07514,1970.4,1970.1,5.85112]
[1742602110777,5.0741,1970.8,1970.5,5.07482]
[1742602110977,5.0741,1970.8,1970.4,4.699]
[1742602110978,5.07485,1970.5,1970.4,4.699]
[1742602111349,5.82691,1970.6,1970.1,0.7807]
[1742602111575,5.07551,1970.3,1970.1,0.7807]
[1742602111971,5.07513,1970.4,1970.1,0.7807]
[1742602112278,5.07485,1970.5,1970.1,5.85646]
[1742602112479,6.1,1970.7,1970.0,31.91505618]
[1742602112480,6.1,1970.7,1970.3,5.07523]
[1742602112774,11.17443,1970.7,1970.4,5.8558]
[1742602112985,11.17443,1970.7,1970.4,10.5628]
[1742602113171,11.17443,1970.7,1970.4,37.3938]
[1742602113484,11.17443,1970.7,1970.4,32.3187]
[1742602113660,16.24895,1970.7,1970.4,32.3187]
[1742602113849,11.17443,1970.7,1970.4,32.3187]
[1742602114263,11.17443,1970.7,1970.5,1.00961024]
[1742602114463,5.07443,1970.7,1970.5,1.00961024]
[1742602115105,5.07459,1970.6,1970.5,1.00961024]
[1742602115404,5.07443,1970.7,1970.5,1.00961024]
[1742602115768,5.07443,1970.7,1970.4,32.3187]
[1742602115987,5.07443,1970.7,1970.4,37.39379]
[1742602116369,5.07443,1970.7,1970.4,38.4134628]
[1742602116568,5.07443,1970.7,1970.4,33.3383728]
[1742602117507,10.14895,1970.7,1970.4,33.3383728]
[1742602117682,5.07443,1970.7,1970.4,38.4134528]
[1742602118101,10.14894,1970.7,1970.4,33.3383728]
[1742602118305,5.07472,1970.6,1970.4,33.3383728]
[1742602120112,10.14893,1970.7,1970.4,33.3383728]
[1742602121025,5.07462,1970.6,1970.4,33.3383728]
[1742602124313,5.07485,1970.5,1970.4,26.831]
[1742602130828,10.14887,1970.7,1970.4,26.831]
[1742602131701,0.7795,1970.9,1970.4,26.831]
[1742602131917,5.07429,1970.8,1970.4,31.90597]
[1742602132114,5.07428,1970.8,1970.4,31.90597]
[1742602132455,5.07434,1970.7,1970.4,31.90597]
[1742602132952,5.07434,1970.7,1970.4,32.93525172]
[1742602135147,5.07428,1970.8,1970.4,38.01028172]
[1742602135350,5.07425,1970.8,1970.4,32.93525172]
[1742602135512,5.07387,1970.9,1970.6,5.07447]
[1742602136615,10.14788,1970.9,1970.5,5.8968]
[1742602136815,10.14788,1970.9,1970.5,10.97157]
[1742602137044,5.07387,1970.9,1970.6,10.8145058]
[1742602137246,5.07387,1970.9,1970.6,37.6425058]
[1742602137757,10.14785,1970.9,1970.6,37.6425058]
[1742602138240,10.14733,1971.0,1970.7,5.07427]
[1742602138414,5.07386,1970.9,1970.6,37.6423658]
[1742602138812,5.07331,1971.1,1970.7,5.89629]
[1742602139016,5.07331,1971.1,1970.7,5.89649]
[1742602139218,5.07332,1971.1,1970.8,5.07392]
[1742602140215,10.14677,1971.1,1970.8,5.07392]
[1742602140517,5.07332,1971.1,1970.8,5.07392]
[1742602141039,5.07305,1971.2,1970.8,10.14781]
[1742602141245,5.07305,1971.2,1970.8,5.07389]
[1742602141246,5.07333,1971.1,1970.8,5.07389]
[1742602142116,10.14679,1971.1,1970.7,5.89651]
[1742602142318,5.07367,1971.0,1970.7,0.8222]
[1742602142634,5.07367,1971.0,1970.7,5.89652]
[1742602143844,5.07367,1971.0,1970.7,0.8222]
[1742602144045,5.07367,1971.0,1970.7,5.89641]
[1742602144667,5.07367,1971.0,1970.7,10.97067]
[1742602144876,5.07367,1971.0,1970.7,10.97064]
[1742602145363,5.07367,1971.0,1970.7,5.89641]
[1742602145579,5.07335,1971.1,1970.7,5.89641]
[1742602145870,5.07335,1971.1,1970.8,5.12477552]
[1742602146165,5.07335,1971.1,1970.8,5.07404]
[1742602147976,5.07335,1971.1,1970.8,6.06527675]
[1742602148566,10.14629,1971.2,1970.8,11.13911675]
[1742602148865,5.07309,1971.2,1970.9,5.8336]
[1742602149219,5.07309,1971.2,1971.0,4.703]
[1742602150270,10.94183,1971.4,1971.0,9.77644]
[1742602150428,0.7965,1971.4,1971.0,9.77644]
[1742602150628,5.07287,1971.3,1971.0,9.77644]
[1742602150824,5.86905,1971.4,1971.0,14.84989]
[1742602151169,10.14525,1971.4,1971.0,9.77644]
[1742602151459,5.07284,1971.3,1971.0,9.77644]
[1742602151663,5.07284,1971.3,1971.0,9.77643]
[1742602151964,10.1453,1971.4,1971.0,9.77643]
[1742602152262,5.0728,1971.3,1971.0,9.7764]
[1742602154388,5.07255,1971.4,1971.0,14.84986]
[1742602154527,5.07255,1971.4,1971.1,0.7599]
[1742602154727,5.07279,1971.3,1971.1,0.7599]
[1742602155354,5.07279,1971.3,1971.1,1.1500146]
[1742602156256,5.07279,1971.3,1971.1,27.9710146]
[1742602156919,5.07279,1971.3,1971.1,28.99333661]
[1742602157126,10.14529,1971.4,1971.1,28.99333661]
[1742602157758,5.0728,1971.3,1971.1,28.99333661]
[1742602158784,5.86869,1971.6,1971.1,28.99333661]
[1742602159058,0.7965,1971.8,1971.4,0.7905]
[1742602159285,0.01455,1971.9,1971.6,5.07201]
[1742602159483,0.01455,1971.9,1971.7,5.07166]
[1742602159633,0.01455,1971.9,1971.6,5.86243]
[1742602159834,0.01455,1971.9,1971.6,5.86238]
[1742602160045,0.01455,1971.9,1971.8,5.0715]
[1742602160253,0.01455,1971.9,1971.7,5.07174]
[1742602160468,0.01455,1971.9,1971.7,10.14334]
[1742602161470,0.01455,1971.9,1971.7,5.0716]
[1742602161662,0.01455,1971.9,1971.8,5.0715]
[1742602161844,0.01455,1971.9,1971.8,5.862]
[1742602162245,0.01455,1971.9,1971.8,6.87367828]
[1742602164646,0.01455,1971.9,1971.8,1.80217828]
[1742602164847,0.01455,1971.9,1971.8,1.01167828]
[1742602165876,0.01455,1971.9,1971.8,6.08317828]
[1742602168374,4.88542,1972.1,1971.8,6.08317828]
[1742602168688,4.88542,1972.1,1971.9,31.512]
[1742602169277,5.84424,1972.2,1971.9,31.512]
[1742602169685,10.91492,1972.2,1971.9,31.512]
[1742602170456,5.84424,1972.2,1971.9,31.512]
[1742602170658,10.9149,1972.2,1971.9,31.512]
[1742602171788,5.84424,1972.2,1971.9,31.512]
[1742602172168,5.84424,1972.2,1971.9,36.58323]
[1742602172369,5.07023,1972.3,1971.9,42.44476]
[1742602172569,5.07023,1972.3,1971.9,37.37353]
[1742602172764,0.7737,1972.4,1972.2,5.07033]
[1742602173079,0.7737,1972.4,1972.1,5.07073]
[1742602174290,5.0699,1972.5,1972.1,5.07065]
[1742602174589,5.0699,1972.5,1972.2,5.89017]
[1742602174790,5.89114,1972.6,1972.3,9.76818]
[1742602174986,0.8216,1972.8,1972.3,9.76818]
[1742602175192,5.06927,1972.7,1972.3,14.83826]
[1742602175571,5.06927,1972.7,1972.3,14.83822]
[1742602175884,5.06927,1972.7,1972.4,5.06992]
[1742602176191,10.13867,1972.7,1972.3,10.14196231]
[1742602176371,5.06927,1972.7,1972.3,10.14196231]
[1742602176575,5.06945,1972.6,1972.3,10.14196231]
[1742602176888,5.89062,1972.8,1972.3,5.07188231]
[1742602177094,5.89062,1972.8,1972.4,5.06971]
[1742602177299,10.95971,1972.8,1972.4,10.13958]
[1742602177498,5.0692,1972.7,1972.5,26.807]
[1742602178997,10.13854,1972.7,1972.5,26.807]
[1742602179198,10.13857,1972.7,1972.5,26.807]
[1742602179402,5.0692,1972.7,1972.5,26.807]
[1742602179602,10.13855,1972.7,1972.5,26.807]
[1742602179800,5.89054,1972.8,1972.5,26.807]
[1742602180101,5.06932,1972.7,1972.5,26.807]
[1742602180677,10.13868,1972.7,1972.5,26.807]
[1742602180877,5.06945,1972.6,1972.5,26.807]
[1742602182002,5.06945,1972.6,1972.2,5.99]
[1742602182003,0.8071,1972.6,1972.2,5.99]
[1742602182326,0.8071,1972.8,1972.3,0.8314]
[1742602182626,5.06871,1972.9,1972.5,5.06952]
[1742602182969,10.13754,1972.9,1972.5,5.06952]
[1742602183174,10.13808,1972.8,1972.4,9.81092]
[1742602183507,5.06899,1972.8,1972.4,9.81086]
[1742602183701,10.13808,1972.8,1972.4,9.81086]
[1742602183908,5.06899,1972.8,1972.4,14.8807]
[1742602184106,10.13811,1972.8,1972.4,9.81084]
[1742602184410,5.06899,1972.8,1972.4,14.88068]
[1742602185308,5.06899,1972.8,1972.6,1.03083154]
[1742602185506,0.8071,1973.3,1972.7,27.6344]
[1742602185722,0.1,1974.2,1973.0,5.06825]
[1742602185723,5.06718,1973.5,1973.0,5.06825]
[1742602185910,5.06804,1973.2,1972.9,0.8314]
[1742602186083,5.06768,1973.3,1972.9,0.8314]
[1742602186285,5.0674,1973.4,1973.0,5.06819]
[1742602186482,5.06773,1973.3,1972.9,16.95865]
[1742602186682,5.06773,1973.3,1972.9,11.88997]
[1742602187079,5.06773,1973.3,1972.9,16.95853]
[1742602187409,5.06773,1973.3,1972.9,17.3327191]
[1742602187905,5.06773,1973.3,1973.0,5.06839]
[1742602188811,10.13496,1973.4,1973.0,5.06825]
[1742602189015,5.06714,1973.5,1973.1,5.06813]
[1742602189183,5.06714,1973.5,1973.2,4.743]
[1742602189722,5.06747,1973.4,1973.2,4.743]
[1742602189906,5.06714,1973.5,1973.2,4.743]
[1742602190525,10.13447,1973.5,1973.2,4.743]
[1742602190837,5.06714,1973.5,1973.2,4.743]
[1742602191719,10.13445,1973.5,1973.2,4.743]
[1742602191924,5.06753,1973.4,1973.2,4.743]
[1742602192425,10.13445,1973.5,1973.2,4.743]
[1742602193107,0.8121,1973.8,1973.4,5.06736]
[1742602193422,0.1185805,1973.9,1973.8,5.06636]
[1742602193593,0.1185805,1973.9,1973.8,4.751]
[1742602193795,0.1185805,1973.9,1973.5,31.86313]
[1742602193796,0.9306805,1973.9,1973.5,27.5504]
[1742602194124,5.06688,1973.6,1973.5,26.796]
[1742602194898,5.06685,1973.7,1973.5,26.796]
[1742602195299,5.1847305,1973.9,1973.6,4.766]
[1742602195626,5.06644,1973.8,1973.6,4.766]
[1742602195933,10.13297,1973.8,1973.6,4.766]
[1742602196097,5.06662,1973.7,1973.6,4.766]
[1742602196724,5.06644,1973.8,1973.6,4.766]
[1742602196898,5.06662,1973.7,1973.6,4.766]
[1742602200431,5.06644,1973.8,1973.6,4.766]
[1742602200838,10.13296,1973.8,1973.6,4.766]
[1742602201045,10.13298,1973.8,1973.6,4.766]
[1742602201244,5.06662,1973.7,1973.6,4.766]
[1742602201449,5.84718,1973.6,1973.5,26.796]
[1742602206914,5.1848905,1973.9,1973.5,32.62325]
[1742602207119,5.06639,1973.8,1973.5,32.62325]
[1742602208130,10.13292,1973.8,1973.5,27.5562]
[1742602208303,5.06639,1973.8,1973.5,26.796]
[1742602208508,5.06666,1973.7,1973.5,26.796]
[1742602208953,5.84088,1973.6,1973.5,26.796]
[1742602211308,5.06666,1973.7,1973.5,26.796]
[1742602211944,10.13344,1973.7,1973.5,26.796]
[1742602212143,5.06666,1973.7,1973.5,26.796]
[1742602212347,10.13343,1973.7,1973.5,26.796]
[1742602212954,5.06688,1973.6,1973.5,26.796]
[1742602213251,5.06666,1973.7,1973.5,26.796]
[1742602214157,10.13344,1973.7,1973.5,26.796]
[1742602215045,10.13349,1973.7,1973.5,26.796]
[1742602215446,5.06688,1973.6,1973.5,26.796]
[1742602216181,5.06666,1973.7,1973.5,26.796]
[1742602216638,10.90694,1973.8,1973.5,26.796]
[1742602216935,5.06664,1973.7,1973.5,26.796]
[1742602217764,10.13346,1973.7,1973.5,26.796]
[1742602218337,5.06664,1973.7,1973.5,26.796]
[1742602219267,10.13342,1973.7,1973.5,26.796]
[1742602219934,5.06664,1973.7,1973.5,26.796]
[1742602220136,10.13342,1973.7,1973.5,26.796]
[1742602220335,10.13341,1973.7,1973.5,26.796]
[1742602220757,5.06664,1973.7,1973.5,26.796]
[1742602220939,5.06688,1973.6,1973.5,26.796]
[1742602221137,5.06664,1973.7,1973.5,26.796]
[1742602221745,10.13342,1973.7,1973.5,26.796]
[1742602222495,5.06664,1973.7,1973.5,26.796]
[1742602222811,5.06669,1973.7,1973.4,36.62327]
[1742602223146,5.8404,1973.8,1973.4,36.62327]
[1742602223347,5.0664,1973.8,1973.4,37.42647]
[1742602223562,10.13293,1973.8,1973.4,42.49369]
[1742602224191,5.0664,1973.8,1973.4,42.49369]
[1742602225678,5.0664,1973.8,1973.5,5.06713]
[1742602225881,0.1185805,1973.9,1973.4,32.3592]
[1742602226197,0.1185805,1973.9,1973.8,5.06636]
[1742602226400,0.1185805,1973.9,1973.8,9.81936]
[1742602227302,0.1185805,1973.9,1973.8,10.62256]
[1742602228256,0.1185805,1973.9,1973.8,5.86956]
[1742602228428,0.1185805,1973.9,1973.8,10.63256]
[1742602228949,0.1185805,1973.9,1973.8,11.01145664]
[1742602230196,0.1185805,1973.9,1973.8,5.13989664]
[1742602230446,0.1185805,1973.9,1973.8,10.20625664]
[1742602230647,0.1185805,1973.9,1973.8,5.13989664]
[1742602231326,0.1185805,1973.9,1973.8,4.761]
[1742602231541,0.1185805,1973.9,1973.6,11.05679]
[1742602232057,0.1185805,1973.9,1973.7,4.762]
[1742602232251,0.1185805,1973.9,1973.8,4.761]
[1742602232609,0.1185805,1973.9,1973.6,5.44335552]
[1742602233118,0.1185805,1973.9,1973.7,4.76]
[1742602233326,0.1185805,1973.9,1973.8,4.76]
[1742602233926,0.1185805,1973.9,1973.8,26.783]
[1742602234126,0.1185805,1973.9,1973.8,31.542]
[1742602234650,0.1185805,1973.9,1973.8,37.37696]
[1742602240457,0.1185805,1973.9,1973.8,37.37296]
[1742602253556,0.1185805,1973.9,1973.8,40.37296]
[1742602253755,0.1185805,1973.9,1973.8,46.91296]
[1742602254942,5e-07,1973.9,1973.8,46.91296]
[1742602261376,5e-07,1973.9,1973.8,46.14436]
[1742602261676,5e-07,1973.9,1973.8,46.97406]
[1742602261879,0.55,1974.3,1974.2,8.89504]
[1742602262068,0.55,1974.3,1974.2,19.62604]
[1742602263270,0.55,1974.3,1974.2,22.62604]
[1742602265983,0.55,1974.3,1974.2,23.00852656]
[1742602268154,0.55,1974.3,1974.2,24.01504738]
[1742602268783,1e-05,1974.3,1974.2,24.56504738]
[1742602269287,1e-05,1974.3,1974.2,51.33704738]
[1742602275088,1e-05,1974.3,1974.2,50.78704738]
[1742602275390,1e-05,1974.3,1974.2,51.33704738]
[1742602277105,1e-05,1974.3,1974.2,49.95734738]
[1742602277259,1e-05,1974.3,1974.2,49.94434738]
[1742602278596,1e-05,1974.3,1974.2,45.21634738]
[1742602278906,0.82901,1974.3,1974.2,43.94434738]
[1742602279065,0.82901,1974.3,1974.2,32.89200738]
[1742602279473,5.89409,1974.3,1974.2,32.89200738]
[1742602280462,6.989994,1974.3,1974.2,31.506]
[1742602280776,1.924914,1974.3,1974.2,31.506]
[1742602281381,6.989994,1974.3,1974.2,31.506]
[1742602281963,1.924914,1974.3,1974.2,31.506]
[1742602282163,0.82901,1974.3,1974.2,31.506]
[1742602283400,0.82901,1974.3,1974.2,26.772]
[1742602283598,11.99409,1974.3,1974.2,26.772]
[1742602283800,5.06616,1973.9,1973.6,26.771]
[1742602284000,0.7753,1973.7,1973.6,26.771]
[1742602284306,5.84192,1973.7,1973.6,26.771]
[1742602284502,6.93276,1973.7,1973.6,26.771]
[1742602286211,5.84192,1973.7,1973.6,26.771]
[1742602289408,8.84192,1973.7,1973.6,26.771]
[1742602298516,14.94192,1973.7,1973.6,26.771]
[1742602300419,0.8283,1973.1,1973.0,31.542]
[1742602300593,5.89646,1973.1,1973.0,31.542]
[1742602300794,0.8283,1973.1,1973.0,31.542]
[1742602301705,5.89646,1973.1,1973.0,26.787]
[1742602302643,0.8283,1973.1,1973.0,26.787]
[1742602303414,5.06806,1973.2,1973.0,26.787]
[1742602303939,5.89608,1973.3,1973.0,31.85528]
[1742602304135,10.96395,1973.3,1973.0,26.787]
[1742602305040,5.06792,1973.2,1973.0,26.787]
[1742602305597,5.06816,1973.1,1973.0,26.787]
[1742602306743,5.06792,1973.2,1973.0,26.787]
[1742602306916,5.06816,1973.1,1973.0,26.787]
[1742602307547,5.06792,1973.2,1973.0,26.787]
[1742602308417,10.13599,1973.2,1973.0,26.787]
[1742602308614,5.06792,1973.2,1973.0,26.787]
[1742602308851,5.06816,1973.1,1973.0,26.787]
[1742602309454,5.06792,1973.2,1973.0,26.787]
[1742602310347,5.89598,1973.3,1973.0,26.787]
[1742602310506,5.89598,1973.3,1973.0,31.8554]
[1742602311147,5.89598,1973.3,1973.0,26.787]
[1742602312371,5.89598,1973.3,1973.0,31.85535]
[1742602312574,0.8283,1973.3,1973.0,36.92363]
[1742602312880,5.89601,1973.3,1973.0,31.85528]
[1742602313537,0.8283,1973.3,1973.0,31.85528]
[1742602313741,0.8177,1973.5,1973.0,26.787]
[1742602313926,6.1,1973.6,1973.0,26.787]
[1742602313927,5.06688,1973.6,1973.3,5.06762]
[1742602314656,10.13396,1973.6,1973.2,5.81977]
[1742602314955,10.13396,1973.6,1973.3,4.747]
[1742602317881,5.06713,1973.5,1973.3,4.747]
[1742602318971,5.06688,1973.6,1973.3,4.747]
[1742602319145,10.13391,1973.6,1973.3,4.747]
[1742602319340,5.06714,1973.5,1973.3,4.747]
[1742602321001,5.06714,1973.5,1973.3,5.11846764]